[Event "44th Chess Olympiad Women 2022"]
[Site "Chennai"]
[Date "2022.08.07"]
[Round "9.9"]
[White "Guichard, Pauline"]
[Black "Repkova, Eva"]
[Result "1/2-1/2"]
[WhiteElo "2379"]
[BlackElo "2303"]
[Annotator "RC"]
[PlyCount "94"]
[EventDate "2022.??.??"]
[TimeControl "60"]

1. d4 {[%emt 0:00:03]} d5 {[%emt 0:00:06]} 2. c4 {[%emt 0:00:05]} e6 {[%emt 0:
00:00]} 3. Nc3 {[%emt 0:00:10]} h6 {[%emt 0:00:57]} 4. Nf3 {[%emt 0:04:01]} Nf6
{[%emt 0:00:22]} 5. g3 {[%emt 0:00:43]} Bd6 {[%emt 0:02:56]} 6. Bg2 {[%emt 0:
00:00]} O-O {[%emt 0:00:44]} 7. O-O {[%emt 0:01:49]} Nc6 {[%emt 0:01:58]} 8. a3
{[%emt 0:06:58]} dxc4 {[%emt 0:07:23]} 9. Qa4 {[%emt 0:00:21]} e5 {[%emt 0:00:
00]} 10. Qxc4 {[%emt 0:04:31]} Nxd4 {[%emt 0:21:06]} 11. Nxd4 {[%emt 0:00:57]}
exd4 {[%emt 0:00:04]} 12. Qxd4 {[%emt 0:00:06]} Qe7 {[%emt 0:00:26]} 13. Bf4 {
[%emt 0:14:12]} Bxf4 {[%emt 0:03:34]} 14. Qxf4 {[%emt 0:00:10]} c6 {[%emt 0:00:
00]} 15. Rfd1 {[%emt 0:07:16]} Be6 {[%emt 0:00:11]} 16. Rd4 {[%emt 0:00:16]}
Rad8 {[%emt 0:13:53]} 17. Rad1 {[%emt 0:00:44]} Rxd4 {[%emt 0:06:25]} 18. Qxd4
{[%emt 0:00:55]} c5 {[%emt 0:02:41]} 19. Qd3 {[%emt 0:11:19]} a6 {[%emt 0:00:
00]} 20. a4 {[%emt 0:04:58]} Rc8 {[%emt 0:05:57]} 21. Qd6 {[%emt 0:08:23]} Qxd6
{[%emt 0:00:35]} 22. Rxd6 {[%emt 0:00:04]} Rc7 {[%emt 0:01:13]} 23. Rb6 {
[%emt 0:10:41]} Bc8 {[%emt 0:03:05]} 24. e4 {[%emt 0:00:13]} Re7 {[%emt 0:00:
00]} 25. f4 {[%emt 0:01:05]} Nd7 {[%emt 0:01:27]} 26. Rd6 {[%emt 0:03:58]} Re6
{[%emt 0:00:09]} 27. Rd1 {[%emt 0:05:51]} Kf8 {[%emt 0:00:08]} 28. Bh3 {
[%emt 0:00:52]} Re7 {[%emt 0:00:03]} 29. e5 {[%emt 0:01:27]} Nb6 {[%emt 0:00:
00]} 30. Bxc8 {[%emt 0:03:49]} Nxc8 {[%emt 0:00:10]} 31. a5 {[%emt 0:00:03]}
Ke8 {[%emt 0:02:34]} 32. Ne4 {[%emt 0:01:09]} Rc7 {[%emt 0:00:45]} 33. Rc1 {
[%emt 0:00:34]} c4 {[%emt 0:01:54]} 34. b3 {[%emt 0:00:17]} b5 {[%emt 0:00:42]}
35. axb6 {[%emt 0:00:06]} Nxb6 {[%emt 0:00:05]} 36. bxc4 {[%emt 0:00:03]} Kd7 {
[%emt 0:00:38]} 37. c5 {[%emt 0:06:30]} Nd5 {[%emt 0:01:07]} 38. Kf2 {[%emt 0:
00:00]} Ke6 {[%emt 0:00:50]} 39. Ke2 {[%emt 0:01:42]} f5 {[%emt 0:00:09]} 40.
Nd6 {[%emt 0:00:55]} g5 {[%emt 0:00:04]} 41. Kf3 {[%emt 0:31:34]} Nb4 {[%emt 0:
00:00]} 42. Ne8 {[%emt 0:00:00]} Re7 {[%emt 0:00:00]} 43. Nf6 {[%emt 0:00:00]}
Rc7 {[%emt 0:00:00]} 44. Ke3 {[%emt 0:00:00]} a5 {[%emt 0:00:00]} 45. Kd4 {
[%emt 0:00:00]} a4 {[%emt 0:00:00]} 46. Kc4 {[%emt 0:00:00]} Rxc5+ {[%emt 0:00:
00]} 47. Kxc5 {[%emt 0:00:00]} Nd3+ {[%emt 0:00:00]} 1/2-1/2

[Event "44th Chess Olympiad Women 2022"]
[Site "Chennai"]
[Date "2022.08.07"]
[Round "9.9"]
[White "Hagarova, Zuzana"]
[Black "Milliet, Sophie"]
[Result "1/2-1/2"]
[WhiteElo "2293"]
[BlackElo "2396"]
[Annotator "TA"]
[PlyCount "56"]
[EventDate "2022.??.??"]
[TimeControl "60"]

{[%evp 15,56,12,12,-20,0,-18,18,-12,-14,-14,16,0,0,0,0,0,0,-29,-33,-35,-28,-55,
-49,-49,-17,-49,-27,-34,-33,-34,-34,-54,-51,-66,-58,-72,0,-63,0,-53,0,-70,0]} 
1. e4 {[%emt 0:00:08]} e5 {[%emt 0:00:04]} 2. Nf3 {[%emt 0:00:14]} Nc6 {
[%emt 0:00:05]} 3. Bb5 {[%emt 0:00:20][%cal Yf1b5,Yb5a4,Ya4b3]} a6 {[%emt 0:00:
04]} 4. Ba4 {[%emt 0:00:10]} Nf6 {[%emt 0:00:05]} 5. O-O {[%emt 0:00:00]} b5 {
[%emt 0:00:09]} 6. Bb3 {[%emt 0:00:09]} Bc5 {[%emt 0:00:04]} 7. c3 {[%emt 0:01:
11]} d6 {[%emt 0:00:12]} 8. d3 {[%emt 0:01:54]} h6 {[%emt 0:01:37]} 9. Be3 {
[%emt 0:03:03] 9.Nbd2 is a critical line. C78: Ruy Lopez: Archangelsk and
Möller Defences.} O-O {[%emt 0:01:46]} 10. Nbd2 {[%emt 0:10:15]} Rb8 {[%emt 0:
04:55]} 11. h3 {[%emt 0:01:50] The position is equal.} Bxe3 {[%emt 0:00:00]}
12. fxe3 {[%emt 0:00:06] [#]} Be6 $146 {[%emt 0:02:01]} ({Predecessor:} 12...
Na5 13. Bc2 c5 14. Qe1 Qe7 15. Qg3 c4 16. d4 b4 17. dxe5 dxe5 18. Qxe5 Qxe5 19.
Nxe5 bxc3 20. bxc3 {1-0 (39) Tiviakov,S (2592)-Sokolov,I (2628) Netherlands
2016}) 13. Qe2 {[%emt 0:11:33]} a5 {[%emt 0:05:04][%cal Ya6a5,Ya5a4]} 14. d4 {
[%emt 0:12:00] [#] And now d5 would win.} a4 {[%emt 0:00:00]} 15. Bc2 {[%emt 0:
05:59] Strongly threatening d5.} Bd7 {[%emt 0:03:11]} 16. a3 {[%emt 0:01:17]}
Qe7 {[%emt 0:00:50]} 17. Rae1 {[%emt 0:07:01]} Na5 {[%emt 0:00:16]} (17... Rfe8
{is interesting.} 18. Bd3 Na5 19. Nh4 Nxe4 20. Ng6 fxg6 21. Bxe4 Qg5) 18. Qf2 {
[%emt 0:06:24]} Nc4 {[%emt 0:06:26]} 19. Rb1 {[%emt 0:09:13]} Bc6 {[%emt 0:01:
14]} 20. Rfe1 {[%emt 0:01:53]} Rfe8 {[%emt 0:00:00]} 21. Nxc4 {[%emt 0:10:01]}
bxc4 {[%emt 0:00:04]} 22. Nd2 {[%emt 0:00:08]} Bb5 {[%emt 0:05:56]} 23. Nf3 {
[%emt 0:03:14]} Rb6 {[%emt 0:01:06]} 24. Qg3 {[%emt 0:02:53]} Nh5 {[%emt 0:12:
08]} 25. Qg4 {[%emt 0:02:32]} Nf6 {[%emt 0:00:00]} 26. Qg3 {[%emt 0:00:05]} Nh5
{[%emt 0:03:05]} 27. Qg4 {[%emt 0:00:05]} Nf6 {[%emt 0:00:04]} (27... g6 $5 {
[%cal Rb5d7]}) 28. Qg3 {[%emt 0:00:07]} Nh5 {[%emt 0:02:06] Weighted Error
Value: White=0.11 (very precise) /Black=0.18 (very precise)} (28... Rb7 $15)
1/2-1/2

[Event "44th Chess Olympiad Women 2022"]
[Site "Chennai"]
[Date "2022.08.07"]
[Round "9.9"]
[White "Savina, Anastasia"]
[Black "Sucikova, Svetlana"]
[Result "1/2-1/2"]
[WhiteElo "2377"]
[BlackElo "2188"]
[Annotator "RC"]
[PlyCount "62"]
[EventDate "2022.??.??"]
[TimeControl "60"]

1. d4 {[%emt 0:00:04]} d5 {[%emt 0:01:06]} 2. c4 {[%emt 0:00:09]} c6 {[%emt 0:
00:00]} 3. Nc3 {[%emt 0:00:08]} e6 {[%emt 0:01:28]} 4. e3 {[%emt 0:00:36]} Nf6
{[%emt 0:00:36]} 5. Nf3 {[%emt 0:00:04]} Nbd7 {[%emt 0:02:18]} 6. Qc2 {[%emt 0:
00:00]} Bd6 {[%emt 0:01:10]} 7. Bd3 {[%emt 0:03:16]} O-O {[%emt 0:01:01]} 8.
O-O {[%emt 0:00:03]} dxc4 {[%emt 0:01:35]} 9. Bxc4 {[%emt 0:00:08]} b5 {
[%emt 0:00:32]} 10. Be2 {[%emt 0:01:59]} Bb7 {[%emt 0:03:10]} 11. e4 {[%emt 0:
00:00]} e5 {[%emt 0:01:44]} 12. dxe5 {[%emt 0:00:11]} Nxe5 {[%emt 0:00:28]} 13.
Nd4 {[%emt 0:01:42]} Neg4 {[%emt 0:09:40]} 14. Nf5 {[%emt 0:03:38]} Bxh2+ {
[%emt 0:08:46]} 15. Kh1 {[%emt 0:00:06]} Bc7 {[%emt 0:03:54]} 16. Bg5 {[%emt 0:
00:00]} Qe8 {[%emt 0:16:07]} 17. f3 {[%emt 0:04:07]} Qe5 {[%emt 0:11:09]} 18.
g3 {[%emt 0:00:53]} b4 {[%emt 0:06:42]} 19. Bf4 {[%emt 0:41:03]} Qa5 {[%emt 0:
00:00]} 20. Bxc7 {[%emt 0:04:57]} Qxc7 {[%emt 0:00:11]} 21. Nb5 {[%emt 0:01:50]
} Qe5 {[%emt 0:04:19]} 22. Nbd6 {[%emt 0:17:03]} Ne3 {[%emt 0:00:54]} 23. Qd2 {
[%emt 0:01:19]} Nxf5 {[%emt 0:02:16]} 24. Nxf5 {[%emt 0:00:06]} g6 {[%emt 0:00:
00]} 25. Qd6 {[%emt 0:02:20]} Qxb2 {[%emt 0:03:39]} 26. Rab1 {[%emt 0:08:37]}
Qxe2 {[%emt 0:01:39]} 27. Qxf6 {[%emt 0:00:59]} gxf5 {[%emt 0:00:34]} 28. Qg5+
{[%emt 0:01:32]} Kh8 {[%emt 0:00:02]} 29. Qf6+ {[%emt 0:00:05]} Kg8 {[%emt 0:
00:00]} 30. Qg5+ {[%emt 0:01:37]} Kh8 {[%emt 0:00:01]} 31. Qf6+ {[%emt 0:00:25]
} Kg8 {[%emt 0:00:25]} 1/2-1/2

[Event "44th Chess Olympiad Women 2022"]
[Site "Chennai"]
[Date "2022.08.07"]
[Round "9.10"]
[White "Abrahamyan, Tatev"]
[Black "Markantonaki, Haritomeni"]
[Result "1-0"]
[WhiteElo "2291"]
[BlackElo "2154"]
[Annotator "RC"]
[PlyCount "141"]
[EventDate "2022.??.??"]
[TimeControl "60"]

1. e4 {[%emt 0:00:05]} e5 {[%emt 0:00:07]} 2. Nf3 {[%emt 0:00:06]} Nc6 {
[%emt 0:00:06]} 3. Bb5 {[%emt 0:00:26]} a6 {[%emt 0:00:23]} 4. Ba4 {[%emt 0:00:
00]} Nf6 {[%emt 0:00:22]} 5. d3 {[%emt 0:00:24]} b5 {[%emt 0:01:14]} 6. Bb3 {
[%emt 0:00:06]} Bb7 {[%emt 0:00:24]} 7. O-O {[%emt 0:00:36]} Be7 {[%emt 0:00:
00]} 8. c4 {[%emt 0:00:40]} O-O {[%emt 0:07:06]} 9. cxb5 {[%emt 0:03:44]} axb5
{[%emt 0:00:07]} 10. Nc3 {[%emt 0:00:38]} b4 {[%emt 0:08:33]} 11. Nd5 {[%emt 0:
00:00]} Na5 {[%emt 0:04:16]} 12. Nxe7+ {[%emt 0:06:26]} Qxe7 {[%emt 0:00:05]}
13. Bc2 {[%emt 0:00:11]} c5 {[%emt 0:04:10]} 14. Nh4 {[%emt 0:10:52]} d5 {
[%emt 0:07:33]} 15. Qf3 {[%emt 0:19:50]} Qe6 {[%emt 0:06:40]} 16. Nf5 {[%emt 0:
00:00]} Rfd8 {[%emt 0:09:53]} 17. Bg5 {[%emt 0:05:26]} c4 {[%emt 0:06:52]} 18.
exd5 {[%emt 0:11:18]} Bxd5 {[%emt 0:01:22]} 19. Qh3 {[%emt 0:00:05]} b3 {
[%emt 0:09:56]} 20. axb3 {[%emt 0:07:10]} cxb3 {[%emt 0:00:11]} 21. Bd1 {
[%emt 0:01:18]} Nc6 {[%emt 0:03:49]} 22. Bf3 {[%emt 0:05:55]} Nb4 {[%emt 0:00:
00]} 23. Bg4 {[%emt 0:03:32]} Nxg4 {[%emt 0:11:27]} 24. Qxg4 {[%emt 0:01:09]}
Rdb8 {[%emt 0:01:55]} 25. Bd2 {[%emt 0:04:49]} g6 {[%emt 0:02:34]} 26. Rxa8 {
[%emt 0:00:36]} Bxa8 {[%emt 0:01:28]} 27. Bxb4 {[%emt 0:03:28]} Qxf5 {[%emt 0:
00:00]} 28. Qxf5 {[%emt 0:00:02]} gxf5 {[%emt 0:00:03]} 29. Bc3 {[%emt 0:00:07]
} e4 {[%emt 0:03:06]} 30. dxe4 {[%emt 0:01:01]} fxe4 {[%emt 0:01:22]} 31. Rd1 {
[%emt 0:00:27]} Bc6 {[%emt 0:00:37]} 32. g4 {[%emt 0:01:36]} Re8 {[%emt 0:00:
00]} 33. Rd6 {[%emt 0:00:31]} Re6 {[%emt 0:00:43]} 34. Rd4 {[%emt 0:01:29]} f6
{[%emt 0:01:22]} 35. Rb4 {[%emt 0:01:10]} Bd5 {[%emt 0:00:22]} 36. Kf1 {
[%emt 0:01:02]} Kf7 {[%emt 0:00:51]} 37. Ke2 {[%emt 0:00:18]} Kg6 {[%emt 0:00:
00]} 38. Ke3 {[%emt 0:00:14]} Re8 {[%emt 0:01:45]} 39. h4 {[%emt 0:01:04]} f5 {
[%emt 0:00:44]} 40. Rb5 {[%emt 0:00:29]} Be6 {[%emt 0:00:27]} 41. gxf5+ {
[%emt 0:05:31]} Bxf5 {[%emt 0:01:33]} 42. Kf4 {[%emt 0:00:17]} Bd7 {[%emt 0:00:
00]} 43. Rg5+ {[%emt 0:02:47]} Kf7 {[%emt 0:00:04]} 44. Rg7+ {[%emt 0:00:57]}
Ke6 {[%emt 0:00:03]} 45. Rxh7 {[%emt 0:02:09]} Rf8+ {[%emt 0:01:14]} 46. Kxe4 {
[%emt 0:08:54]} Rxf2 {[%emt 0:00:14]} 47. Rh6+ {[%emt 0:00:17]} Ke7 {[%emt 0:
00:00]} 48. Kd5 {[%emt 0:00:21]} Be8 {[%emt 0:04:02]} 49. Re6+ {[%emt 0:02:17]}
Kd7 {[%emt 0:01:15]} 50. Rb6 {[%emt 0:01:26]} Kc7 {[%emt 0:02:14]} 51. Rb4 {
[%emt 0:02:18]} Bf7+ {[%emt 0:01:06]} 52. Ke5 {[%emt 0:00:35]} Kd7 {[%emt 0:00:
00]} 53. Rd4+ {[%emt 0:01:47]} Kc7 {[%emt 0:01:19]} 54. Rd3 {[%emt 0:02:37]}
Bg6 {[%emt 0:05:22]} 55. Ba5+ {[%emt 0:00:50]} Kc8 {[%emt 0:00:27]} 56. Rd8+ {
[%emt 0:02:03]} Kb7 {[%emt 0:00:05]} 57. Bc3 {[%emt 0:00:29]} Rf3 {[%emt 0:00:
00]} 58. Bd4 {[%emt 0:01:07]} Kc7 {[%emt 0:01:48]} 59. Rg8 {[%emt 0:00:48]} Bd3
{[%emt 0:00:23]} 60. Rg5 {[%emt 0:01:06]} Rh3 {[%emt 0:00:36]} 61. Rh5 {
[%emt 0:00:32]} Rf3 {[%emt 0:01:04]} 62. Kd5 {[%emt 0:00:57]} Kd7 {[%emt 0:00:
00]} 63. Rh8 {[%emt 0:00:35]} Bg6 {[%emt 0:01:52]} 64. Rh6 {[%emt 0:00:52]} Bd3
{[%emt 0:00:25]} 65. Rd6+ {[%emt 0:00:50]} Ke7 {[%emt 0:00:24]} 66. Rb6 {
[%emt 0:00:15]} Bc2 {[%emt 0:01:07]} 67. Rb7+ {[%emt 0:00:20]} Kf8 {[%emt 0:00:
00]} 68. h5 {[%emt 0:00:31]} Rf1 {[%emt 0:02:07]} 69. h6 {[%emt 0:00:20]} Rh1 {
[%emt 0:00:21]} 70. Ke6 {[%emt 0:00:41]} Kg8 {[%emt 0:00:44]} 71. h7+ {[%emt 0:
00:00]} 1-0

[Event "44th Chess Olympiad Women 2022"]
[Site "Chennai"]
[Date "2022.08.07"]
[Round "9.10"]
[White "Krush, Irina"]
[Black "Avramidou, Anastasia"]
[Result "1-0"]
[WhiteElo "2430"]
[BlackElo "2274"]
[Annotator "TA"]
[PlyCount "87"]
[EventDate "2022.??.??"]
[TimeControl "60"]

{[%evp 9,86,27,21,18,22,22,23,28,37,39,25,36,58,48,49,45,47,41,57,35,162,146,
152,158,158,130,137,138,144,73,141,141,141,140,145,149,142,142,162,160,146,157,
190,180,198,195,211,183,216,214,296,293,299,272,317,310,342,350,385,353,400,
393,394,396,803,681,913,919,5310,5318,29986,29987,29990,29991,29992,29993,
29998,29999,29999]} 1. d4 {[%emt 0:00:05]} d5 {[%emt 0:00:26]} 2. c4 {[%emt 0:
00:00]} e6 {[%emt 0:00:07]} 3. Nf3 {[%emt 0:01:00]} a6 {[%emt 0:00:38]} 4. Bg5
{[%emt 0:00:28]} Be7 {[%emt 0:00:27]} 5. Bxe7 {[%emt 0:00:11]} Qxe7 {[%emt 0:
00:00]} 6. e3 {[%emt 0:00:57] D30: Queen's Gambit Declined: Systems without
Nc3.} Nf6 {[%emt 0:02:41]} 7. Nbd2 {[%emt 0:01:47]} O-O {[%emt 0:02:57]} 8. Rc1
{[%emt 0:00:17] White has an edge.} Nc6 {[%emt 0:27:01]} 9. Bd3 {[%emt 0:04:58]
[%cal Yf1d3,Yd3e4,Ye4c6] [#]} e5 $146 {[%emt 0:09:20]} ({Predecessor:} 9... Rd8
10. O-O e5 11. cxd5 Nxd5 12. Rxc6 bxc6 13. Nxe5 Bd7 14. Nb3 a5 15. Qc2 g6 {
½-½ (44) Goganov,A (2643)-Rakhmanov,A (2664) Khanty-Mansiysk 2016}) 10. cxd5
{[%emt 0:00:24]} Nxd5 {[%emt 0:01:00] Strongly threatening ...exd4.} 11. Be4 {
[%emt 0:10:03]} Rd8 {[%emt 0:18:51] [#]} 12. Rxc6 $1 {[%emt 0:02:18]} bxc6 {
[%emt 0:00:05]} 13. Nxe5 {[%emt 0:00:07]} Bb7 {[%emt 0:04:15]} 14. Qc2 {
[%emt 0:04:37][%csl Yc6,Yh7] Inhibits c5.} ({Weaker is} 14. Qh5 g6 15. Qd1 c5
$17) 14... Nf6 {[%emt 0:12:31]} (14... c5 $14) 15. Bxc6 $18 {[%emt 0:07:54]} ({
But not} 15. Nxc6 Bxc6 16. Bxc6 Rab8 $16) 15... Rdb8 {[%emt 0:00:35]} 16. O-O {
[%emt 0:00:24]} Qe6 {[%emt 0:00:40]} 17. Nb3 {[%emt 0:01:52] [#] aiming for
Nc5.0x0.001eba0a8e3adp-1022s more active pieces.} Bxc6 {[%emt 0:00:10]} 18.
Nxc6 {[%emt 0:10:40]} Rb5 {[%emt 0:08:50]} 19. Nc1 {[%emt 0:00:00]} (19. Rc1
$142) 19... Qe4 {[%emt 0:02:32]} (19... a5 $142) 20. Qxe4 $16 {[%emt 0:01:14]}
Nxe4 {[%emt 0:00:04]} 21. Nd3 {[%emt 0:00:10]} a5 {[%emt 0:01:07]} 22. Rc1 {
[%emt 0:00:35]} Kf8 {[%emt 0:03:30]} 23. f3 {[%emt 0:06:36]} Nd6 {[%emt 0:00:
00]} 24. b3 {[%emt 0:00:36][%cal Yb2b3,Yb3b4]} a4 {[%emt 0:02:28]} 25. b4 {
[%emt 0:00:35]} a3 {[%emt 0:00:03]} 26. e4 {[%emt 0:03:51][%cal Ye3e4,Ye4e5]}
Rb6 {[%emt 0:01:06]} 27. d5 {[%emt 0:03:42]} Ke8 {[%emt 0:00:00]} 28. Kf2 {
[%emt 0:03:39]} Nb7 {[%emt 0:01:18]} 29. Ke3 {[%emt 0:04:15]} Rc8 {[%emt 0:00:
34]} 30. e5 {[%emt 0:02:31]} Ra8 {[%emt 0:00:21]} 31. f4 {[%emt 0:00:00]} Rb5 {
[%emt 0:00:36]} 32. Ke4 {[%emt 0:01:26] And now Nd4 would win.} Kd7 {[%emt 0:
00:38]} 33. g4 {[%emt 0:04:06]} g6 {[%emt 0:00:30]} 34. Rc3 {[%emt 0:03:20]}
Ra4 {[%emt 0:00:29]} 35. f5 {[%emt 0:04:03]} gxf5+ {[%emt 0:00:00]} 36. gxf5 {
[%emt 0:00:02]} Ra8 $2 {[%emt 0:00:58]} (36... f6 37. Rc2 fxe5 38. Kxe5 Nd6 39.
Nc5+ Rxc5 40. Rxc5 Ra8) 37. e6+ {[%emt 0:00:52]} Ke8 {[%emt 0:00:00]} 38. Ke5 {
[%emt 0:03:14]} Nd6 {[%emt 0:00:48]} 39. Nc5 {[%emt 0:00:31] Intending Rg3 and
mate. Pair of Knights!} f6+ {[%emt 0:00:23]} 40. Kxf6 {[%emt 0:01:30] White
mates.} Rxc5 {[%emt 0:00:05]} 41. bxc5 {[%emt 0:31:23]} Ne4+ {[%emt 0:30:05]}
42. Kg7 {[%emt 0:00:04]} Nxc3 {[%emt 0:00:19]} 43. f6 {[%emt 0:00:02][%csl Ge6,
Gg7][%cal Yf5f6,Yf6f7]} Nxd5 {[%emt 0:00:37]} 44. f7# {[%emt 0:00:07] Weighted
Error Value: White=0.07 (flawless) /Black=0.39} 1-0

[Event "44th Chess Olympiad Women 2022"]
[Site "Chennai"]
[Date "2022.08.07"]
[Round "9.10"]
[White "Pavlidou, Ekaterini"]
[Black "Yip, Carissa"]
[Result "0-1"]
[WhiteElo "2138"]
[BlackElo "2416"]
[Annotator "TA"]
[PlyCount "112"]
[EventDate "2022.??.??"]
[TimeControl "60"]

{[%evp 17,112,43,43,18,38,29,26,22,18,-12,-19,-12,-9,-28,-17,-31,0,-5,0,-10,
-18,-16,37,9,45,1,43,0,0,0,0,0,0,-2,0,0,50,35,48,39,43,0,51,39,130,-110,-111,
-110,-85,-169,-165,-175,-175,-198,-197,-193,-202,-261,-264,-258,-145,-375,-365,
-352,-368,-353,-372,-418,-416,-374,-368,-570,-551,-551,-356,-341,-329,-578,
-556,-664,-657,-650,-641,-624,-616,-801,-793,-756,-721,-5431,-5431,-5406,-5406,
-1679,-1447,-4137,-1420]} 1. d4 {[%emt 0:00:22]} Nf6 {[%emt 0:00:19]} 2. c4 {
[%emt 0:00:44]} g6 {[%emt 0:00:05]} 3. Nc3 {[%emt 0:00:55]} Bg7 {[%emt 0:00:07]
} 4. e4 {[%emt 0:00:10]} d6 {[%emt 0:00:03]} 5. Bd3 {[%emt 0:00:45]} O-O {
[%emt 0:01:47]} 6. Nge2 {[%emt 0:00:07]} Nc6 {[%emt 0:00:42]} 7. O-O {[%emt 0:
00:00]} Nd7 {[%emt 0:00:11]} 8. Be3 {[%emt 0:03:38]} e5 {[%emt 0:00:23]} 9. d5
{[%emt 0:00:22]} Nd4 {[%emt 0:00:30]} 10. f3 {[%emt 0:01:04] E70: King's
Indian: Miscellaneous lines with 4 e4, including 5 Nge2 and 5 Bd3 0-0 6 Nge2.}
f5 {[%emt 0:11:02]} 11. exf5 {[%emt 0:01:31]} Nxf5 {[%emt 0:04:30]} 12. Bf2 {
[%emt 0:02:05] White has an edge.} Bh6 {[%emt 0:00:37] [#]} 13. Kh1 $146 {
[%emt 0:27:16]} ({Predecessor:} 13. Re1 Ne3 14. Qb1 Qf6 15. Ng3 Nxg2 16. Nce4
Qxf3 17. Be2 Nxe1 18. Bxf3 Nxf3+ 19. Kh1 {0-1 (35) Spiranec,N (1912)-Rozic,M 
(2052) Croatia 2016}) 13... Ne3 {[%emt 0:02:55]} 14. Bxe3 {[%emt 0:08:48]} (14.
Qd2 {feels hotter.} Qg5 15. Bxe3 Qxe3 16. Qc2) 14... Bxe3 {[%emt 0:00:05]} 15.
b4 {[%emt 0:02:29]} Nf6 {[%emt 0:10:08]} 16. Ng3 {[%emt 0:01:49]} Ne8 {[%emt 0:
00:00]} 17. Qe1 {[%emt 0:06:56]} Qg5 {[%emt 0:05:38]} 18. Nce4 {[%emt 0:04:50]}
Qh6 {[%emt 0:00:33]} 19. a4 {[%emt 0:02:54]} a5 {[%emt 0:10:58]} (19... Ng7 $11
) 20. bxa5 $14 {[%emt 0:05:46]} Ra7 {[%emt 0:10:36]} 21. Ra2 {[%emt 0:02:45]
[%cal Yc4c5]} Ng7 {[%emt 0:05:02]} 22. Rc2 {[%emt 0:05:21]} (22. c5 $5) 22...
Bf4 {[%emt 0:05:13]} 23. c5 {[%emt 0:03:25]} Nf5 $40 {[%emt 0:11:27] Black
attacks.} 24. cxd6 {[%emt 0:00:12]} cxd6 {[%emt 0:00:03]} 25. Rc7 {[%emt 0:00:
45][%cal Ye4f6]} Ra8 {[%emt 0:01:30]} 26. Kg1 {[%emt 0:03:22]} Ne3 {[%emt 0:00:
55]} (26... Nxg3 $11 27. Nxg3 Bd2) 27. Rf2 {[%emt 0:04:14]} (27. Nxd6 e4 28.
Rxc8 Raxc8 29. Ndxe4 (29. Nxc8 $2 exd3 30. Ne7+ Kf7 $19) 29... Nxf1 30. Bxf1
Rc1 $19) 27... Nxd5 {[%emt 0:00:16]} 28. Bc4 {[%emt 0:00:08]} Be6 {[%emt 0:00:
04]} 29. Rxb7 {[%emt 0:00:40]} (29. Bxd5 $5 Bxd5 30. Nf1 $11) 29... Be3 {
[%emt 0:01:45]} (29... Rac8 $1 $11 30. Rc2 (30. Nxd6 Rc6 $11) 30... Kh8) 30.
Nxd6 {[%emt 0:06:32][%cal Ya5a6]} Rxa5 {[%emt 0:04:38]} 31. Rb5 $2 {[%emt 0:03:
34]} Rxb5 $17 {[%emt 0:02:50] Dancing on a razor blade.} 32. axb5 {[%emt 0:00:
01][%cal Yg3f1]} Nc7 {[%emt 0:03:46] Black is more active.} 33. Qc3 {[%emt 0:
01:12] [#]} Bd4 $1 $19 {[%emt 0:01:15] Black has strong compensation.} 34. Qc2
{[%emt 0:01:10] [#]} Qe3 {[%emt 0:02:02]} (34... Bxf2+ 35. Kxf2 Qh4 36. Nde4
$15 (36. Qe4 Qxe4 37. Bxe6+ Nxe6 $17)) 35. Bf1 {[%emt 0:00:00]} Nd5 {[%emt 0:
00:48] Threatens to win with ...Nc3.} ({Stronger than} 35... Qxf2+ 36. Qxf2 Rb8
37. Nge4) 36. Nge4 {[%emt 0:00:25]} Qe1 {[%emt 0:00:00] And now ...Ra8 would
win. Pin} 37. Qd2 {[%emt 0:01:01]} Qxd2 {[%emt 0:02:36]} ({Not} 37... Bxf2+ 38.
Qxf2 Qxf2+ 39. Kxf2 $17) 38. Nxd2 {[%emt 0:00:04] Pair of Knights!} Ra8 {
[%emt 0:00:10]} ({Inferior is} 38... Bxf2+ 39. Kxf2 Nb6 40. Ke3 $17) (38... Nc3
$19 39. N2e4 Nd1) 39. g3 $2 {[%emt 0:00:03] White does not recover from this.}
(39. Nb3 $17 {keeps fighting.} Bxf2+ 40. Kxf2) 39... Ra2 {[%emt 0:00:43] ...
Rxd2 is the strong threat.} 40. N6e4 {[%emt 0:00:35]} Ne3 {[%emt 0:01:30]
Inhibits Bc4.} 41. Kh1 {[%emt 0:00:00]} Ra1 {[%emt 0:02:18] White must now
prevent ...Bh3.} 42. g4 {[%emt 0:01:40]} Bc4 {[%emt 0:15:29]} 43. Nxc4 {
[%emt 0:02:52]} Nxc4 {[%emt 0:00:04]} 44. Ra2 {[%emt 0:01:07]} (44. Ng3 $142
Bxf2 45. Kg2 Rxf1 46. Nxf1) 44... Rxf1+ {[%emt 0:00:25]} 45. Kg2 {[%emt 0:00:
04]} Ra1 {[%emt 0:01:40]} 46. Rxa1 {[%emt 0:01:20]} Bxa1 {[%emt 0:00:05]} 47.
g5 $2 {[%emt 0:00:40]} (47. h4) 47... Bd4 {[%emt 0:00:14] Black is clearly
winning.} 48. h4 {[%emt 0:02:12]} Kf7 {[%emt 0:01:46]} 49. Kg3 {[%emt 0:00:48]}
Na3 {[%emt 0:00:51]} 50. b6 {[%emt 0:00:00]} Bxb6 {[%emt 0:00:16]} 51. f4 {
[%emt 0:00:24]} Nc4 {[%emt 0:02:07]} 52. fxe5 {[%emt 0:03:52]} Bc7 {[%emt 0:00:
10]} 53. h5 {[%emt 0:06:22]} gxh5 {[%emt 0:02:31]} 54. Kh4 {[%emt 0:00:06]} Kg6
{[%emt 0:00:16]} 55. e6 {[%emt 0:00:00]} Bd8 {[%emt 0:00:14] aiming for ...Ne3.
} 56. Nf6 {[%emt 0:01:42]} h6 {[%emt 0:02:05] Weighted Error Value: White=0.43/
Black=0.21 (precise)} 0-1